Cogmind - Beta 16 @@@ ROGUE MODE // 2025.10.29 @ 20:07:55 Player: Reflectatory Result: Destroyed by G-47 Trooper with Particle Gun Performance ------------- Evolutions (2) 1000 Regions Visited (5) 1000 Robots Destroyed (13) 65 Value Destroyed (353) 353 Prototype IDs (24) 480 Alien Tech Used (0) 0 Bonus (570) 570 TOTAL SCORE: 3468 Bonus ------- Pacifist 270 Aligned with FarCom 300 Cogmind --------- Core Integrity 0/550 Matter 275/300 Energy 160/160 System Corruption 0% Temperature Warm (110) Movement Core (100) Ox1 Location -8/Materials Parts ------- > --- POWER (2) -------- Light Nuclear Core > --- PROPULSION (4) --- (None) > --- UTILITY (3) ------ Advanced Visual Processing Unit > --- WEAPON (2) ------- (None) > --- INVENTORY (5) ---- Light Ion Engine Peak State ------------ > --- POWER ------------ Ion Engine > --- PROPULSION ------- Wheel Wheel > --- UTILITY ---------- Cloak of Protection Chronowheel > --- WEAPON ----------- Assault Rifle Light Assault Rifle > --- INVENTORY -------- Light Ion Engine Light Assault Rifle Mining Laser [Rating: 26] Favorites ----------- Power Ion Engine Engine Ion Engine Power Core Light Nuclear Core Propulsion Wheel Leg Titanium Leg Wheel Wheel Flight Unit Flight Unit Utility Cloak of Protection Device Cloak of Protection Processor Advanced Visual Processing Unit Protection Hardened Medium Armor Plating Weapon Light Assault Rifle Energy Gun Particle Gun Ballistic Gun Light Assault Rifle Special Weapon Mining Laser Build | -11 -10 -10 -10 -9 -8 ------- Run | Yrd Mat Min Exi Min Mat Slots Evolved 4 | . . . . . 4 Power 1 | . . . . . 1 Propulsion 2 | . . . . . 2 Utility 1 | . . . . . 1 Weapon . | . . . . . . Parts Attached 21 | 5 . . 2 1 13 Power 4 | 1 . . . . 3 Engine 3 | 1 . . . . 2 Core 1 | . . . . . 1 Reactor . | . . . . . . Propulsion 5 | 2 . . . . 3 Treads . | . . . . . . Leg 2 | . . . . . 2 Wheel 2 | 2 . . . . . Hover . | . . . . . . Flight 1 | . . . . . 1 Utility 6 | . . . 2 1 3 Device 3 | . . . 2 . 1 Storage . | . . . . . . Processor 2 | . . . . 1 1 Hackware . | . . . . . . Protection 1 | . . . . . 1 Artifact . | . . . . . . Weapon 6 | 2 . . . . 4 Energy Gun 1 | . . . . . 1 Energy Cannon . | . . . . . . Ballistic Gun 4 | 2 . . . . 2 Ballistic Cannon . | . . . . . . Launcher . | . . . . . . Special Weapon 1 | . . . . . 1 Impact Weapon . | . . . . . . Slashing Weapon . | . . . . . . Piercing Weapon . | . . . . . . Special Melee Weapon . | . . . . . . Unidentified Prototypes 3 | . . . 2 . 1 Parts Lost 13 | . . . . . 13 Power 2 | . . . . . 2 Propulsion 5 | . . . . . 5 Utility 2 | . . . . . 2 Weapon 4 | . . . . . 4 Highest Loss Streak 10 | . . . . . 10 To Critical Strikes . | . . . . . . Average Backups 2 | 1 2 3 3 3 2 Power . | . 1 1 1 1 1 Propulsion . | . . . . . . Utility . | . . . . . . Weapon 1 | . 1 2 2 2 1 Tool/Special . | . . . . . . Unused Backups 1 | . . . . . 1 Power 1 | . . . . . 1 Propulsion . | . . . . . . Utility . | . . . . . . Weapon . | . . . . . . Tool/Special . | . . . . . . Average Slot Usage (%) 73 | . 71 71 79 95 70 Engine 12 | . 14 14 14 14 11 Core 1 | . . . . . 2 Leg 5 | . . . . . 8 Wheel 17 | . 28 28 28 28 11 Device 8 | . . . 8 14 9 Processor 5 | . . . . 9 9 Energy Gun 1 | . . . . . 2 Ballistic Gun 19 | . 28 28 28 28 14 Peak Build Rating 26 | 5 5 5 26 15 26 Average Rating 14 | 4 5 5 10 14 18 On Entrance 7 | . 5 5 5 13 15 Avg Prop Armor Cover (%) 4 | . . . . . 4 Naked Turns . | . . . . . . Heaviest Build 29 | 8 8 8 16 16 29 Greatest Support 20 | 20 20 20 20 20 20 Greatest Overweight (x) 3 | . . . . . 3 Average Overweight (x) . | . . . . . . Largest Inventory Capacity 5 | 5 5 5 5 5 5 Average Capacity 5 | 5 5 5 5 5 5 Most Carried 3 | 2 3 3 3 3 3 Average Carried 2 | 1 2 3 3 3 2 Final Capacity 5 | 5 5 5 5 5 5 Final Carried 3 | 2 3 3 3 3 1 Class Distribution -------------------- 100% | Mutant Dominant Class ---------------- Mutant | -10/Materials Mutant | -10/Mines Mutant | -10/Exiles Mutant | -9/Mines Mutant | -8/Materials Resources | -11 -10 -10 -10 -9 -8 ----------- Run | Yrd Mat Min Exi Min Mat Matter Collected 593 | 198 . . . 52 343 Remotely . | . . . . . . Salvage Created 415 | . . . . . 415 Parts 26 | . . . . . 26 Haulers Intercepted . | . . . . . . Recyclers Shooed . | . . . . . . Parts Field Recycled . | . . . . . . Retrieved Matter . | . . . . . . Parts Self-Destructed . | . . . . . . Prevented . | . . . . . . Parts Restored . | . . . . . . Kills | -11 -10 -10 -10 -9 -8 ------- Run | Yrd Mat Min Exi Min Mat Combat Hostiles Destroyed 13 | . . . . . 13 Guns 13 | . . . . . 13 Classes Destroyed 3 | . . . . . 3 Swarmer 7 | . . . . . 7 Grunt 5 | . . . . . 5 Sentry 1 | . . . . . 1 Best Kill Streak 5 | . . . . . 5 Combat Bots Only 5 | . . . . . 5 Max Kills in Single Turn 2 | . . . . . 2 Gunslinging . | . . . . . . Exploded . | . . . . . . Melee . | . . . . . . Uniques/NPCs Destroyed . | . . . . . . Combat | -11 -10 -10 -10 -9 -8 -------- Run | Yrd Mat Min Exi Min Mat Hostile Shots Fired 143 | . . . . . 143 Missed 14 | . . . . . 14 Hits 129 | . . . . . 129 Projectile 129 | . . . . . 129 Critical Strikes 8 | . . . . . 8 Damage Taken 1889 | . . . . . 1889 Core 559 | . . . . . 559 Absorbed by Shields . | . . . . . . Core Remaining (%) 100 | 100 . . . 100 . Volleys Fired 68 | . . . . . 68 Largest 2 | . . . . . 2 Hottest 100 | . . . . . 100 Shots Fired 101 | . . . . . 101 Gun 96 | . . . . . 96 Cannon . | . . . . . . Launcher . | . . . . . . Special 5 | . . . . . 5 Kinetic 96 | . . . . . 96 Thermal 5 | . . . . . 5 Explosive . | . . . . . . Electromagnetic . | . . . . . . Robot Hit Streak 14 | . . . . . 14 Robot Miss Streak 4 | . . . . . 4 Penetration Max . | . . . . . . Secondary Targets 1 | . . . . . 1 Max Gunslinging Chain 1 | . . . . . 1 Shots Hit Robots 74 | . . . . . 74 Core Hits 31 | . . . . . 31 Critical Kills 1 | . . . . . 1 Critical Parts Destroyed 2 | . . . . . 2 Critical Strikes 3 | . . . . . 3 Destroy 3 | . . . . . 3 Melee Attacks . | . . . . . . Impact . | . . . . . . Slashing . | . . . . . . Piercing . | . . . . . . Sneak Attacks . | . . . . . . Combat Hostiles . | . . . . . . Follow-up Attacks . | . . . . . . Damage Inflicted 853 | . . . . . 853 Guns 754 | . . . . . 754 Cannons . | . . . . . . Explosions . | . . . . . . Melee . | . . . . . . Ramming 3 | . . . . . 3 Kinetic 754 | . . . . . 754 Thermal 96 | . . . . . 96 Explosive . | . . . . . . Electromagnetic . | . . . . . . Impact . | . . . . . . Slashing . | . . . . . . Piercing . | . . . . . . Highest Corruption . | . . . . . . Average Corruption . | . . . . . . Corruption Purged . | . . . . . . Corruption Blocked . | . . . . . . Overload Shots . | . . . . . . Overflow Damage . | . . . . . . Projectiles . | . . . . . . Explosions . | . . . . . . Melee . | . . . . . . Knockbacks . | . . . . . . Impact . | . . . . . . Kinetic . | . . . . . . Secondary . | . . . . . . Self-Inflicted Damage 1 | . . . . . 1 Shots . | . . . . . . Rammed 1 | . . . . . 1 Targets Rammed 1 | . . . . . 1 Kicked . | . . . . . . Crushed . | . . . . . . Highest Temperature 358 | . . . . . 358 Average Temperature 161 | . . . . . 161 Received Heat Transfer 1089 | . . . . . 1089 Effects 5 | . . . . . 5 Shutdowns 2 | . . . . . 2 Energy Bleed 1 | . . . . . 1 Matter Decay 1 | . . . . . 1 Damage (minor) 1 | . . . . . 1 Siege Activations . | . . . . . . Martial Activations . | . . . . . . Shielding Activations . | . . . . . . Robots Disrupted . | . . . . . . Combat Hostiles . | . . . . . . Robots Corrupted . | . . . . . . Combat Hostiles . | . . . . . . Parts Fried . | . . . . . . Impact Corruptions . | . . . . . . Robots Melted . | . . . . . . Combat Hostiles . | . . . . . . Parts Melted . | . . . . . . Heat Transferred 200 | . . . . . 200 Parts Sabotaged . | . . . . . . Parts Stolen . | . . . . . . Parts Stripped . | . . . . . . Power Chain Reactions . | . . . . . . Alert | -11 -10 -10 -10 -9 -8 ------- Run | Yrd Mat Min Exi Min Mat Maximum Alert Level . | . . . . . . Low Security (%) 100 | 100 100 100 . 100 100 Level 1 . | . . . . . . Level 2 . | . . . . . . Level 3 . | . . . . . . Level 4 . | . . . . . . Level 5 . | . . . . . . High Security . | . . . . . . Max Security . | . . . . . . Peak Influence 150 | . . . . . 150 Initial . | . . . . . . Average 35 | . . . . . 42 Influence Increases 387 | . . . . . 387 Destroy 0b10 Robot/C 260 | . . . . . 260 Destroy Leader 40 | . . . . . 40 Successful Hack 11 | . . . . . 11 Destroy Structure 1 | . . . . . 1 Lose Combat Pursuer 75 | . . . . . 75 Influence Decreases 387 | . . . . . 387 Time Decay 276 | . . . . . 276 Lost Part 111 | . . . . . 111 Squads Dispatched 1 | . 1 . . . . Investigation 1 | . 1 . . . . Extermination . | . . . . . . Reinforcement . | . . . . . . Assault . | . . . . . . Garrison . | . . . . . . Intercept . | . . . . . . Searches Triggered . | . . . . . . Construction Impeded . | . . . . . . Haulers Reinforced . | . . . . . . Active Scanning Responses . | . . . . . . Cargo Convoy Interrupts . | . . . . . . Stealth | -11 -10 -10 -10 -9 -8 --------- Run | Yrd Mat Min Exi Min Mat Distress Signals 2 | . . . . . 2 Communications Jammed . | . . . . . . Distress Signals . | . . . . . . Times Spotted 29 | . 5 . . . 24 Peak Tracking Total 7 | . 5 . . . 7 Tactical Retreats 2 | . . . . . 2 Traps | -11 -10 -10 -10 -9 -8 ------- Run | Yrd Mat Min Exi Min Mat Traps Triggered 4 | . 1 . . . 3 Indirectly . | . . . . . . Trap Hack Attempts . | . . . . . . Triggered . | . . . . . . Disarmed . | . . . . . . Reprogrammed . | . . . . . . Reused . | . . . . . . Traps Extracted . | . . . . . . Installed . | . . . . . . Triggered . | . . . . . . Machines | -11 -10 -10 -10 -9 -8 ---------- Run | Yrd Mat Min Exi Min Mat Machines Disabled . | . . . . . . Max in Single Turn . | . . . . . . Machines Repaired . | . . . . . . Machines Dismantled . | . . . . . . Machines Sabotaged . | . . . . . . Overloaded Fab Kills . | . . . . . . Hacking | -11 -10 -10 -10 -9 -8 --------- Run | Yrd Mat Min Exi Min Mat Machines Accessed 9 | . 1 . 5 . 3 Terminals 3 | . . . . . 3 Fabricators . | . . . . . . Repair Stations . | . . . . . . Recycling Units 1 | . 1 . . . . Scanalyzers . | . . . . . . Garrison Access . | . . . . . . Total Hacks 59 | . 1 . 50 . 8 Successful 56 | . 1 . 50 . 5 Failed 3 | . . . . . 3 Catastrophic . | . . . . . . Database Lockouts . | . . . . . . Manual 9 | . . . 1 . 8 Terminals 8 | . . . . . 8 Fabricators . | . . . . . . Repair Stations . | . . . . . . Recycling Units 1 | . 1 . . . . Scanalyzers . | . . . . . . Garrison Access . | . . . . . . Terminal Hacks 51 | . . . 50 . 1 Record 49 | . . . 49 . . Terminal Index 1 | . . . . . 1 Proto ID Catalog 1 | . . . 1 . . Fabricator Hacks . | . . . . . . Repair Station Hacks . | . . . . . . Recycling Unit Hacks 1 | . 1 . . . . Report Inventory 1 | . 1 . . . . Scanalyzer . | . . . . . . Garrison Access Hacks . | . . . . . . Unauthorized Hacks 4 | . . . . . 4 Terminals 4 | . . . . . 4 Track 1 | . . . . . 1 Botnet 3 | . . . . . 3 Fabricators . | . . . . . . Repair Stations . | . . . . . . Recycling Units . | . . . . . . Scanalyzers . | . . . . . . Garrison Access . | . . . . . . Data Cores Recovered . | . . . . . . Used . | . . . . . . Hacking Detections 3 | . . . . . 3 Full Trace Events . | . . . . . . Feedback Events . | . . . . . . Feedback Blocked . | . . . . . . Robot Schematics Acquired . | . . . . . . Robots Built . | . . . . . . Authchips . | . . . . . . Time . | . . . . . . Total Robot Build Rating . | . . . . . . Part Schematics Acquired . | . . . . . . Parts Built . | . . . . . . Authchips . | . . . . . . Time . | . . . . . . Total Part Build Rating . | . . . . . . Part Studies Acquired . | . . . . . . Parts Repaired . | . . . . . . Time . | . . . . . . Parts Recycled . | . . . . . . Recycled Matter . | . . . . . . Retrieved Matter . | . . . . . . Retrieved Components . | . . . . . . Parts Scanalyzed . | . . . . . . Part Schematics Acquired . | . . . . . . Parts Damaged . | . . . . . . Bothacking | -11 -10 -10 -10 -9 -8 ------------ Run | Yrd Mat Min Exi Min Mat Used RIF Installer . | . . . . . . Robots Hacked . | . . . . . . Non-combat . | . . . . . . Combat . | . . . . . . Robot Hacks Applied . | . . . . . . Relay Couplers Released . | . . . . . . Fabnet Peak Effective % . | . . . . . . Robots Rewired . | . . . . . . Allies Hacked . | . . . . . . Hacks Repelled . | . . . . . . Allies | -11 -10 -10 -10 -9 -8 -------- Run | Yrd Mat Min Exi Min Mat Total Allies . | . . . . . . Largest Group . | . . . . . . Highest-Rated Group . | . . . . . . Highest-Rated Ally . | . . . . . . Total Orders . | . . . . . . Ally Attacks . | . . . . . . Total Damage . | . . . . . . Kills . | . . . . . . Allies Corrupted . | . . . . . . Allies Melted . | . . . . . . Intel | -11 -10 -10 -10 -9 -8 ------- Run | Yrd Mat Min Exi Min Mat Active Infowar (turns) 887 | . . . 27 23 837 Optics 860 | . . . . 23 837 Cloaking 150 | . . . 27 . 123 Robot Analysis Total . | . . . . . . Derelict Logs Recovered . | . . . . . . Drone Launches . | . . . . . . Drone Recoveries . | . . . . . . Exploration | -11 -10 -10 -10 -9 -8 ------------- Run | Yrd Mat Min Exi Min Mat Turns Passed 1365 | 44 68 32 359 25 837 Spaces Moved 932 | 44 84 40 445 30 289 Core 8 | 1 . . . . 7 Treads . | . . . . . . Legs 42 | . . . . . 42 Wheels 882 | 43 84 40 445 30 240 Hover . | . . . . . . Flight . | . . . . . . Fastest Speed 50 | 50 80 80 80 80 50 Average Speed 85 | 79 80 80 80 80 99 Slowest Speed 200 | 80 80 80 80 80 200 Overloaded Moves . | . . . . . . Propulsion Burnouts . | . . . . . . Robots Hopped . | . . . . . . Potential Cave-ins . | . . . . . . Cave-ins Triggered . | . . . . . . Exploration Rate (%) 27 | 3 17 16 91 12 26 Regions Visited 5 Branch Regions 3 Pre-discovered Areas 1 | . . . 1 . . Known Exits Taken . | . . . . . . Unknown Exits Taken 5 | 1 1 1 1 1 . Scrap Searched 1 | . . . . 1 . Spaces Dug . | . . . . . . Terrain Destroyed 1 | . . . . . 1 Melee . | . . . . . . Projectile 1 | . . . . . 1 AOE . | . . . . . . Terrain Rammed . | . . . . . . Walls Destroyed . | . . . . . . Machines Disabled . | . . . . . . Actions | -11 -10 -10 -10 -9 -8 --------- Run | Yrd Mat Min Exi Min Mat Total 1381 | 50 84 39 447 30 731 Wait 356 | . . . . . 356 Move 927 | 43 83 39 444 29 289 Hop . | . . . . . . Pick Up 3 | 2 1 . . . . Fast Attach 20 | 5 . . 2 1 12 Attach 2 | . . . . . 2 Detach . | . . . . . . Swap 3 | . . . . . 3 Drop 1 | . . . 1 . . Fire 68 | . . . . . 68 Melee . | . . . . . . Ram 1 | . . . . . 1 Kick . | . . . . . . Crush . | . . . . . . Escape Stasis . | . . . . . . Rewire . | . . . . . . Trap . | . . . . . . Miscellaneous . | . . . . . . Route ------- -11/Scrapyard -10/Materials -10/Mines -10/Exiles (discovered 2 exits: [*Min x2]) -9/Mines -8/Materials History --------- Turn | Location | Event 18 | -11/Scrapyard | Discovered new exit (range 16) 45 | -11/Scrapyard | Entered Materials 98 | -10/Materials | Discovered new exit (range 14) 113 | -10/Materials | Entered Mines 140 | -10/Mines | Deemed a non-threat by the Exiles lab entrance 141 | -10/Mines | Discovered new exit (range 5) 145 | -10/Mines | Entered Exiles 162 | -10/Exiles | Discovered new exit (range 14) 184 | -10/Exiles | Met 8R-AWN 197 | -10/Exiles | Met EX-HEX 222 | -10/Exiles | Met EX-BIN 234 | -10/Exiles | Aligned with FarCom system 235 | -10/Exiles | Given EX-Vault access code 273 | -10/Exiles | Opened EX-Vault 276 | -10/Exiles | Found Prototype Device 276 | -10/Exiles | Identified Cloak of Protection 281 | -10/Exiles | Found Prototype Device 281 | -10/Exiles | Identified Chronowheel 281 | -10/Exiles | Activated Chronowheel 303 | -10/Exiles | Warned to stay clear of 0b10 Research branches 304 | -10/Exiles | Build established: Mutant 327 | -10/Exiles | Met EX-DEC 355 | -10/Exiles | Visited The Gauntlet 459 | -10/Exiles | Learned location of Zion (-7) 495 | -10/Exiles | Discovered new exit (range 14) 504 | -10/Exiles | Left Exiles lab with Cloak of Protection 504 | -10/Exiles | Entered Mines 522 | -9/Mines | Discovered new exit (range 9) 529 | -9/Mines | Entered Materials 529 | -8/Materials | Evolved 4 slots: Power x1, Propulsion x2, Utility x1 1093 | -8/Materials | Core integrity fell below 50% 1113 | -8/Materials | Core integrity fell below 20% 1127 | -8/Materials | Lost 10 parts (2p3n2u3w) 1366 | -8/Materials | Destroyed by G-47 Trooper with Particle Gun Last Messages --------------- Hvy. Assault Rifle severed. U-05 Engineer lays Concrete. Acquired Particle Gun. U-05 Engineer lays Concrete. R-06 Scavenger collects Lgt. Deuterium Engine. Triggered Blade Trap. Massive razor-sharp blades shoot up from within the floor. Particle Gun severed. Aluminum Leg severed. U-05 Engineer lays Concrete. R-06 Scavenger collects Particle Gun. Acquired Aluminum Leg. R-06 Scavenger collects Hvy. Assault Rifle. U-05 Engineer builds a Wall. Mining Laser destroyed. G-47 Trooper heat short circuits Lgt. Nuclear Core. Aluminum Leg destroyed. Slammed into G-47 Trooper. Map ----- +----------------------------------------------------+ | ?????????????????????????????????????????????????? | | ?????????????????????????????????????????????????? | | ?????????????????????????????????????????????????? | | ?????????????????????????????????????????????????? | | ?????????????????????????????????????????????????? | | ?????????????????????????????????????????????????? | | ?????????????????????????????????????????????????? | | ?????????????????????????????????????????????????? | | ?????????????????????????????????????????????????? | | ?????????????????????????????????????????????????? | | ?????????????????????????????????????????????????? | | ?????????????????????????????????????????????????? | | ??###########????????????????????????????????????? | | ??# #??????###############???????????????? | | ??# """ """ ######## #???????????????? | | ??# """ """ # # """"" #???????????????? | | ??# """ """ # "T" # """"" !// Y???????????????? | | ??# # # """"" !//??????????????????? | | ??# # # /????????????????????? | | ??# # #?? ??????????????????????? | | ### %# #?###+###?????????????????????? | | ##########+######+###k #?????????????????????? | | u^ #?????????????????????? | | ^ #?????????????????????? | | w k k #?????????????????????? | | #####################u g@ #?????????????????????? | | ###############??????###g###?????????????????????? | | #%T ! #???????## #???????????????????????? | | #=[ #????????#+#???????????????????????? | | + """ """ """ #????????# ???????????????????????? | | #!""" """ ""???????????# ???????????????????????? | | # """ """ ?????????????# ??????????????????????? | | # ?????????????# ??????????????????????? | | ##########Y????????????# ?????????????????????? | | #??????????????????????# ?????????????????????? | | #??????????????????????# ?????????????????????? | | #??????????????????????# ????????????????????? | | #???????????????????????###?/????????????????????? | | ###########????????????????? ???????????????????? | | # #?????????????????? ???????????????????? | | # #??????????????????????????????????????? | | # #??????????????????????????????????????? | | # #??????????????????????????????????????? | | / #??????????????????????????????????????? | | # = #??????????????????????????????????????? | | # #??????????????????????????????????????? | | # #??????????????????????????????????????? | | #########+#??????????????????????????????????????? | | #???????# #??????????????????????????????????????? | | #???????# #??????????????????????????????????????? | +----------------------------------------------------+ Best States ------------- Heat Dissipation 31 Energy Generation 23 Energy Capacity 290 Matter Stores 300 Matter Capacity 300 Sight Range 20 Terrain Scan Density 10 Cloak Strength 5 Armor Coverage 225 Evasion (%) 45 Item Schematics ----------------- None Robot Schematics ------------------ None Fabricated ------------ Nothing Repaired ---------- Nothing Studied --------- None Alien Tech Used ----------------- None Achievements -------------- Sixth Sense Spot Them First Challenges ------------ None Game ------ Seed PiercingGuidedFemtoactuators Manual? 0 Play Time 00:14:34 Cumulative 44.6 hours Start 2025.10.29 @ 19:53:20 End 2025.10.29 @ 20:07:55 Sessions 1 Manual Loads 0 Difficulty Rogue Special Mode None Game No. 48 Rogue 48 Adventurer 0 Explorer 0 Win Type - Total 1 Types 1/0/0/0/0/0/0/0/0/0 Lore% 40 Gallery% 41 Achievement% 27 Wizard Run 0 Options --------- Layout 1 ASCII 0 Keyboard 0 Movement Numpad Keybinds 0 Fullscreen 1 Font 32/SmallcapsGlow Map View 50x35 Zoom Use 0% Tactical HUD 0 Map Filters NONE Filters NONE Steam 1 RUN: 21952ccb-181e-4adc-9957-beaa79f0ecd4